bitfinex-derivatives/quotes_SOLF0:USTF0_20260114
["timestamp","ask_amount","ask_price","bid_price","bid_amount"]
[1768369157526,3.07637507,145.18,145.12,9.39194031]
[1768369157918,3.07637507,145.18,145.12,6.2041]
[1768369158122,3.07637507,145.18,145.12,9.39194031]
[1768369158422,3.24399315,145.17,145.1,9.39254031]
[1768369161119,3.24399315,145.17,145.1,6.2047]
[1768369161721,9.44609315,145.17,145.1,6.2047]
[1768369162029,3.24399315,145.16,145.08,84.58784031]
[1768369163025,9.44649315,145.16,145.09,6.2053]
[1768369164321,3.24399315,145.16,145.09,6.2053]
[1768369165922,3.24399315,145.15,145.09,6.2053]
[1768369166126,3.24399315,145.15,145.07,87.6263]
[1768369166330,3.24399315,145.15,145.07,6.2063]
[1768369166523,9.44739315,145.14,145.07,6.2063]
[1768369166822,3.24399315,145.13,145.07,6.2063]
[1768369167424,3.24399315,145.13,145.05,81.42]
[1768369168828,3.24399315,145.13,145.07,6.2062]
[1768369169328,3.24399315,145.13,145.06,6.2067]
[1768369170827,6.2034,145.14,145.05,81.42]
[1768369171127,3.24399315,145.21,145.1,4.98908166]
[1768369171324,3.24399315,145.21,145.1,86.40908166]
[1768369172532,9.44569315,145.18,145.11,6.2045]
[1768369175836,3.24399315,145.18,145.11,6.2045]
[1768369177332,2.9729865,145.17,145.09,6.2052]
[1768369177533,2.9729865,145.17,145.09,87.6452]
[1768369181137,6.2018,145.18,145.09,92.63428166]
[1768369181332,6.2018,145.18,145.1,6.205]
[1768369183536,9.1747865,145.18,145.1,6.205]
[1768369185438,9.1750865,145.17,145.1,6.205]
[1768369186942,9.1750865,145.17,145.11,6.2046]
[1768369187132,2.9729865,145.17,145.11,6.2046]
[1768369199257,2.9729865,145.16,145.11,6.2046]
[1768369199453,2.9729865,145.16,145.09,87.6451]
[1768369199650,2.9729865,145.16,145.09,81.44]
[1768369200847,2.9729865,145.16,145.1,6.205]
[1768369203456,9.1756865,145.16,145.09,81.42]
[1768369204258,9.1756865,145.16,145.1,6.205]
[1768369208255,3.04289423,145.14,145.05,159.73890618]
[1768369208456,3.04289423,145.14,145.06,81.42]
[1768369209153,3.04289423,145.14,145.08,6.2059]
[1768369210158,3.04289423,145.16,145.06,81.42]
[1768369210455,3.04289423,145.2,145.08,4.98908166]
[1768369211063,3.04289423,145.16,145.09,6.2051]
[1768369211656,9.24539423,145.16,145.1,6.205]
[1768369213664,3.04289423,145.16,145.1,6.205]
[1768369215768,6.2021,145.17,145.1,6.205]
[1768369220370,9.17549355,145.17,145.1,6.205]
[1768369225275,9.17549355,145.17,145.1,9.39719774]
[1768369227370,2.97339355,145.16,145.1,9.39719774]
[1768369227577,9.17609355,145.16,145.1,9.39719774]
[1768369229974,2.97339355,145.16,145.1,3.19219774]
[1768369230179,2.97339355,145.2,145.12,3.19219774]
[1768369230770,2.97339355,145.18,145.12,3.19219774]
[1768369231778,2.97339355,145.18,145.13,6.2037]
[1768369237779,3.11517209,145.2,145.14,3.19219774]
[1768369238788,3.11517209,145.2,145.15,6.2029]
[1768369238984,3.11517209,145.2,145.14,3.19219774]
[1768369239491,9.31607209,145.2,145.12,3.19219774]
[1768369240180,9.31607209,145.2,145.13,6.2033]
[1768369241084,9.31607209,145.2,145.14,6.2032]
[1768369241785,3.11517209,145.2,145.15,6.2029]
[1768369244473,9.31607209,145.2,145.13,6.2034]
[1768369244680,9.31607209,145.2,145.12,3.19219774]
[1768369244984,3.11517209,145.2,145.12,3.19219774]
[1768369245183,3.11517209,145.2,145.14,6.2029]
[1768369245384,3.11517209,145.2,145.12,3.19219774]
[1768369246082,3.11517209,145.2,145.1,96.5206]
[1768369246585,3.11517209,145.2,145.12,3.19219774]
[1768369248083,3.11517209,145.2,145.12,84.61219774]
[1768369248386,3.11517209,145.2,145.15,6.2028]
[1768369251390,3.11517209,145.2,145.13,3.19219774]
[1768369252893,3.11517209,145.2,145.14,6.2029]
[1768369261609,3.11517209,145.18,145.12,6.2039]
[1768369261805,3.11517209,145.18,145.06,12.4135]
[1768369261806,3.11517209,145.18,145.1,81.42]
[1768369262000,3.11517209,145.18,145.1,3.19219774]
[1768369263409,9.31727209,145.17,145.1,3.19219774]
[1768369263609,3.11517209,145.16,145.05,256.29220618]
[1768369263806,3.11517209,145.16,145.07,3.19219774]
[1768369264002,3.11517209,145.15,145.09,6.2051]
[1768369264204,3.11517209,145.15,145.07,3.19219774]
[1768369264205,3.11517209,145.14,145.07,3.19219774]
[1768369264507,3.11517209,145.14,145.06,81.42]
[1768369265810,9.31857209,145.14,145.07,6.2062]
[1768369266310,3.21969841,145.13,145.07,6.2062]
[1768369266704,3.21969841,145.13,145.06,81.42]
[1768369266705,3.21969841,145.13,145.08,6.2059]
[1768369267413,3.21969841,145.15,145.09,6.2054]
[1768369273019,9.42269841,145.15,145.07,90.81809774]
[1768369273314,9.42269841,145.15,145.07,84.61219774]
[1768369273711,3.21969841,145.14,145.07,84.61219774]
[1768369274511,3.21969841,145.13,145.03,96.5654]
[1768369274716,3.21969841,145.13,145.06,3.19219774]
[1768369275812,9.42349841,145.13,145.06,9.39869774]
[1768369277217,3.21969841,145.12,145.06,90.83869774]
[1768369277812,3.21969841,145.12,145.06,9.39869774]
[1768369278016,3.21969841,145.12,145.06,90.83869774]
[1768369280614,3.21969841,145.12,145.06,84.63219774]
[1768369280810,9.42389841,145.12,145.05,81.44]
[1768369281811,6.2042,145.12,145.05,81.44]
[1768369282014,3.18688659,145.1,145.05,81.44]
[1768369282621,9.39198659,145.1,145.05,81.44]
[1768369283922,9.39248659,145.09,145.05,81.44]
[1768369284217,9.39248659,145.09,145.02,84.63219774]
[1768369284817,9.39248659,145.09,145.02,90.84059774]
[1768369285018,9.39248659,145.09,145.02,9.40059774]
[1768369285208,9.39248659,145.09,145.02,90.84059774]
[1768369287312,9.39248659,145.09,145.02,87.6484]
[1768369288017,9.39278659,145.08,145.0,11.20206289]
[1768369288218,9.39278659,145.08,145.01,81.46]
[1768369290020,9.39278659,145.08,145.01,87.6689]
[1768369293628,9.39278659,145.08,145.02,6.2085]
[1768369294929,3.18688659,145.08,145.02,6.2085]
[1768369301939,9.39278659,145.08,145.02,6.2085]
[1768369303041,3.18688659,145.08,145.02,6.2085]
[1768369307545,3.18688659,145.08,145.03,6.208]
[1768369310845,3.18688659,145.08,145.01,87.6685]
[1768369312046,3.18688659,145.08,145.02,6.2084]
[1768369318960,3.18688659,145.08,145.03,6.2079]
[1768369321358,3.00102775,145.14,145.02,4.99316289]
[1768369321658,3.00102775,145.14,145.04,4.99316289]
[1768369322760,9.20562775,145.11,145.05,6.2071]
[1768369326562,3.08155,145.09,145.03,6.2077]
[1768369329969,3.08155,145.09,145.01,86.47316289]
[1768369329970,3.08155,145.08,145.01,87.6885]
[1768369330762,9.28755,145.08,145.01,87.6885]
[1768369333873,3.08155,145.07,145.01,87.6885]
[1768369336374,3.08155,145.07,144.98,4.99316289]
[1768369336568,3.08155,145.07,144.99,81.48]
[1768369337870,9.28795,145.07,145.0,6.2093]
[1768369339577,3.10227933,145.05,144.99,6.2097]
[1768369339969,6.2069,145.06,144.99,6.2097]
[1768369340777,9.30917933,145.06,144.99,6.2097]
[1768369344382,3.10227933,145.04,144.99,6.2097]
[1768369345180,6.2068,145.06,145.0,6.2093]
[1768369345581,9.30907933,145.06,145.0,6.2093]
[1768369345780,9.30907933,145.06,144.98,81.48]
[1768369346786,9.30907933,145.06,144.99,6.2097]
[1768369349983,3.10227933,145.05,144.95,162.50995161]
[1768369350179,3.10227933,145.05,144.97,3.19714129]
[1768369350981,9.31027933,145.03,144.97,3.19714129]
[1768369351184,9.31027933,145.03,144.95,243.98995161]
[1768369351382,9.31027933,145.03,144.95,247.1870929]
[1768369351784,9.31027933,145.03,144.96,6.211]
[1768369351988,3.10227933,145.03,144.97,3.19714129]
[1768369352289,3.10227933,145.05,144.97,3.19714129]
[1768369353786,9.30987933,145.04,144.97,9.40774129]
[1768369355490,6.208,145.03,144.97,9.40774129]
[1768369356995,9.20650151,145.03,144.97,9.40774129]
[1768369358488,9.20650151,145.03,144.97,3.19714129]
[1768369359089,6.208,145.03,144.97,3.19714129]
[1768369359296,6.208,145.03,144.96,6.211]
[1768369359297,2.99850151,145.01,144.95,84.67714129]
[1768369359794,2.99850151,145.01,144.96,6.211]
[1768369360193,2.99850151,145.01,144.96,9.40814129]
[1768369362597,6.2082,145.03,144.96,9.40814129]
[1768369362897,9.20670151,145.03,144.96,9.40814129]
[1768369363095,2.99850151,145.02,144.96,9.40814129]
[1768369364590,9.20700151,145.02,144.96,9.40814129]
[1768369364796,2.99850151,145.01,144.95,84.67714129]
[1768369365802,2.99850151,145.01,144.95,90.88854129]
[1768369366099,2.99850151,145.01,144.95,87.6914]
[1768369366298,2.99850151,145.01,144.95,90.88854129]
[1768369366697,2.99850151,145.01,144.96,6.211]
[1768369370597,2.99850151,145.01,144.95,81.48]
[1768369370897,9.20750151,145.01,144.95,81.48]
[1768369371502,9.20750151,145.01,144.95,87.6914]
[1768369373200,2.99850151,145.01,144.95,87.6914]
[1768369377506,2.99850151,145.01,144.95,90.88854129]
[1768369380506,9.20750151,145.01,144.95,90.88854129]
[1768369380807,2.99850151,145.03,144.95,84.67714129]
[1768369381000,6.2076,145.04,144.97,3.19714129]
[1768369381201,2.99850151,145.05,144.97,3.19714129]
[1768369382917,6.2081,145.03,144.97,9.40774129]
[1768369383312,99.74384129,145.07,144.97,3.19714129]
[1768369383313,9.20700151,145.02,144.97,3.19714129]
[1768369383517,2.99850151,145.02,144.95,6.2111]
[1768369384017,2.99850151,145.02,144.93,87.7321]
[1768369384216,2.99850151,145.0,144.93,87.7321]
[1768369384812,2.99850151,144.98,144.89,3.19714129]
[1768369385016,2.99850151,144.98,144.9,81.5]
[1768369385408,6.1956428,144.98,144.9,81.5]
[1768369385813,3.27745214,144.97,144.9,81.5]
[1768369386919,6.2111,144.96,144.9,87.7132]
[1768369388315,9.48855214,144.96,144.9,81.5]
[1768369388516,3.27745214,144.95,144.9,81.5]
[1768369388715,9.48895214,144.95,144.89,3.19714129]
[1768369393327,9.48895214,144.95,144.88,6.2144]
[1768369393521,9.48895214,144.95,144.88,9.41154129]
[1768369394524,9.48935214,144.94,144.88,3.19714129]
[1768369395427,3.27745214,144.93,144.88,3.19714129]
[1768369397333,3.27745214,144.93,144.87,87.7349]
[1768369397334,3.27745214,144.93,144.87,90.93204129]
[1768369400039,3.27745214,144.93,144.88,6.2144]
[1768369400232,96.6008,144.99,144.88,6.2144]
[1768369400533,3.19714129,144.98,144.89,3.19714129]
[1768369400735,6.211,144.96,144.89,9.41114129]
[1768369402239,3.01626483,144.95,144.89,9.41114129]
[1768369402634,9.22776483,144.95,144.89,9.41114129]
[1768369409339,9.22776483,144.95,144.89,6.214]
[1768369414643,3.01626483,144.97,144.87,86.52220317]
[1768369414952,3.01626483,144.97,144.9,5.00220317]
[1768369415744,3.01626483,144.97,144.91,6.2132]
[1768369418353,2.99951438,144.99,144.9,5.00220317]
[1768369419752,2.99951438,144.99,144.93,6.2121]
[1768369423356,9.20931438,144.99,144.93,6.2121]
[1768369430067,2.99951438,144.99,144.93,6.2121]
[1768369430264,2.99951438,145.01,144.94,5.00220317]
[1768369431765,2.99951438,145.01,144.95,6.2114]
[1768369432266,2.99951438,145.01,144.93,81.54]
[1768369432465,2.99951438,145.01,144.92,5.00220317]
[1768369432772,2.99951438,145.01,144.92,86.54220317]
[1768369433671,2.99951438,145.01,144.92,5.00220317]
[1768369433874,2.99951438,145.0,144.93,6.2119]
[1768369434265,2.99951438,145.0,144.91,81.54]
[1768369434567,2.99951438,144.99,144.91,81.54]
[1768369434774,2.99951438,144.99,144.9,86.54220317]
[1768369435766,9.20931438,144.99,144.92,6.2127]
[1768369439276,9.20931438,144.99,144.93,6.2123]
[1768369441674,2.99951438,144.97,144.91,6.2128]
[1768369441874,2.99951438,144.97,144.9,5.00220317]
[1768369443178,2.99951438,144.97,144.89,81.54]
[1768369444776,2.99951438,144.97,144.91,6.2132]
[1768369444980,3.11382526,144.96,144.87,96.6767]
[1768369445179,3.11382526,144.96,144.88,81.54]
[1768369445780,3.11382526,144.95,144.88,81.54]
[1768369446784,3.11382526,144.95,144.89,6.214]
[1768369447472,3.11382526,144.94,144.87,87.7545]
[1768369448485,3.11382526,144.85,144.69,8.60272759]
[1768369448693,3.11382526,144.82,144.7,5.00220317]
[1768369448983,3.11382526,144.81,144.7,5.00220317]
[1768369449674,96.7304,144.79,144.7,5.00220317]
[1768369449979,99.84422526,144.79,144.7,5.00220317]
[1768369450279,6.219,144.78,144.7,5.00220317]
[1768369450680,9.33282526,144.78,144.68,5.00220317]
[1768369450879,9.33282526,144.78,144.68,86.54220317]
[1768369450880,3.11382526,144.78,144.68,86.54220317]
[1768369452377,3.11382526,144.78,144.68,81.54]
[1768369453780,3.11382526,144.78,144.67,11.22540317]
[1768369455483,3.11382526,144.78,144.67,6.2232]
[1768369456688,8.11602843,144.78,144.67,6.2232]
[1768369456988,3.11382526,144.8,144.69,96.7969]
[1768369457684,3.11382526,144.79,144.69,96.7969]
[1768369458788,3.11382526,144.79,144.71,96.7833]
[1768369459582,3.11382526,144.79,144.71,6.2216]
[1768369460485,1.38,144.78,144.65,17.4246891]
[1768369460690,3.26322801,144.71,144.62,96.8438]
[1768369460890,3.26322801,144.71,144.6,81.62]
[1768369461480,3.26322801,144.71,144.62,6.2254]
[1768369462684,3.26322801,144.71,144.63,6.2249]
[1768369462990,3.26322801,144.71,144.62,5.00220317]
[1768369463186,3.26322801,144.71,144.61,96.8472]
[1768369463793,3.26322801,144.71,144.64,6.2245]
[1768369463996,3.26322801,144.71,144.65,81.64]
[1768369465695,14.48613118,144.74,144.65,81.64]
[1768369465894,9.48392801,144.74,144.65,81.64]
[1768369466084,3.26322801,144.73,144.65,81.64]
[1768369469805,3.26322801,144.73,144.66,6.2237]
[1768369471791,3.26322801,144.76,144.67,3.21175504]
[1768369472899,3.26322801,144.76,144.69,6.2225]
[1768369473099,3.26322801,144.76,144.7,81.66]
[1768369477709,9.48292801,144.76,144.7,81.66]
[1768369481007,6.2202,144.75,144.7,81.66]
[1768369483411,6.2205,144.74,144.7,81.66]
[1768369485205,6.2199,144.76,144.7,81.66]
[1768369485411,239.03026315,144.78,144.7,84.87175504]
[1768369486915,6.2193,144.77,144.7,91.09395504]
[1768369487115,3.1976003,144.76,144.7,81.66]
[1768369487317,6.222,144.71,144.62,6.2255]
[1768369487615,3.1976003,144.73,144.59,98.06046198]
[1768369487616,3.1976003,144.73,144.63,81.66]
[1768369487815,3.1976003,144.73,144.65,3.21175504]
[1768369488010,3.1976003,144.73,144.66,81.66]
[1768369488407,6.40935534,144.73,144.59,118.77046198]
[1768369488614,3.21175504,144.68,144.59,3.21175504]
[1768369488809,6.40935534,144.7,144.6,84.87175504]
[1768369489408,6.2232,144.68,144.6,3.21175504]
[1768369489607,6.2232,144.68,144.61,81.66]
[1768369490718,6.2237,144.67,144.56,7.43150272]
[1768369491018,6.2237,144.67,144.59,3.21175504]
[1768369491617,6.2237,144.67,144.61,3.21175504]
[1768369491817,6.2237,144.67,144.62,81.68]
[1768369492019,3.1976003,144.71,144.63,3.21175504]
[1768369493414,3.1976003,144.65,144.52,193.8161]
[1768369493616,3.1976003,144.65,144.57,3.21175504]
[1768369493815,3.1976003,144.65,144.52,98.10957737]
[1768369494018,3.1976003,144.68,144.58,3.21175504]
[1768369494224,8.76602462,144.67,144.59,81.68]
[1768369494440,3.1976003,144.67,144.59,81.68]
[1768369494615,3.1976003,144.67,144.6,81.68]
[1768369495224,6.2235,144.68,144.6,84.89175504]
[1768369496322,3.1976003,144.69,144.6,81.68]
[1768369496527,3.1976003,144.69,144.61,3.21175504]
[1768369498125,3.1976003,144.68,144.6,81.68]
[1768369498322,3.1976003,144.68,144.61,81.7]
[1768369499124,3.1976003,144.57,144.48,3.21175504]
[1768369499428,3.1976003,144.6,144.49,81.7]
[1768369500421,103.0916,144.59,144.49,81.7]
[1768369500621,6.227,144.59,144.49,81.7]
[1768369500819,6.2261,144.61,144.49,87.9308]
[1768369501929,9.4229003,144.63,144.5,6.2304]
[1768369502721,6.2259,144.62,144.5,6.2304]
[1768369503031,3.1976003,144.61,144.51,81.7]
[1768369504929,17.63196504,144.64,144.51,81.7]
[1768369505427,3.49158109,144.63,144.51,81.7]
[1768369505629,3.49158109,144.63,144.51,87.9301]
[1768369506437,11.70084583,144.65,144.53,6.2294]
[1768369506628,3.49158109,144.65,144.53,6.2294]
[1768369506930,8.20926474,144.72,144.58,6.2273]
[1768369507133,8.20926474,144.72,144.59,81.72]
[1768369507330,105.00976474,144.69,144.53,96.8998]
[1768369507533,105.00976474,144.69,144.55,6.2284]
[1768369508332,96.8005,144.69,144.56,81.72]
[1768369508932,3.49158109,144.66,144.56,81.72]
[1768369509139,3.49158109,144.66,144.58,8.20926474]
[1768369510031,9.71568109,144.66,144.59,81.72]
[1768369510236,9.71568109,144.66,144.55,14.43766474]
[1768369510639,3.49158109,144.63,144.56,81.72]
[1768369511838,9.71698109,144.63,144.56,81.72]
[1768369516237,3.49158109,144.62,144.52,6.2297]
[1768369516540,3.49158109,144.64,144.53,81.74]
[1768369516840,3.49158109,144.64,144.54,81.74]
[1768369516841,6.2258,144.62,144.54,81.74]
[1768369519942,9.78923587,144.62,144.55,81.74]
[1768369521141,9.78923587,144.62,144.56,81.74]
[1768369521537,3.56343587,144.61,144.56,81.74]
[1768369525132,9.78833587,144.64,144.56,81.74]
[1768369526739,9.78833587,144.64,144.53,8.20926474]
[1768369526938,9.78833587,144.64,144.55,6.2285]
[1768369527342,9.78833587,144.64,144.56,81.76]
[1768369527737,9.78833587,144.64,144.55,6.2285]
[1768369527939,9.78833587,144.64,144.56,81.76]
[1768369528139,3.56343587,144.62,144.53,6.2292]
[1768369528340,3.56343587,144.62,144.54,81.76]
[1768369528732,6.2252,144.64,144.54,81.76]
[1768369528933,3.56343587,144.64,144.54,89.96926474]
[1768369529339,3.56343587,144.64,144.57,3.21651615]
[1768369530642,9.78723587,144.67,144.59,3.21651615]
[1768369530847,9.78723587,144.67,144.6,81.76]
[1768369531041,3.56343587,144.67,144.61,3.21651615]
[1768369531443,3.56343587,144.67,144.6,81.76]
[1768369531648,3.56343587,144.7,144.6,81.76]
[1768369531952,6.2227,144.69,144.6,81.76]
[1768369532451,3.56343587,144.7,144.6,81.76]
[1768369533147,6.2217,144.72,144.61,14.42670871]
[1768369533348,6.2217,144.72,144.61,13.31837494]
[1768369533539,3.56343587,144.73,144.63,6.2251]
[1768369533738,100.31713587,144.76,144.63,6.2251]
[1768369533950,9.13826223,144.75,144.63,6.2251]
[1768369534151,5.57482636,144.74,144.63,6.2251]
[1768369534748,6.2211,144.73,144.63,6.2251]
[1768369536944,6.2211,144.73,144.64,6.2247]
[1768369537145,6.2211,144.73,144.64,19.54307494]
[1768369538252,6.2211,144.73,144.65,6.2242]
[1768369538559,6.2211,144.73,144.66,81.72]
[1768369538750,6.2211,144.73,144.67,13.31837494]
[1768369538951,96.7704,144.73,144.64,13.31837494]
[1768369539153,96.7704,144.73,144.65,81.72]
[1768369539465,6.2219,144.71,144.65,81.72]
[1768369539848,6.2219,144.71,144.66,81.72]
[1768369540053,6.2212,144.73,144.68,13.31837494]
[1768369540254,6.2212,144.73,144.66,81.72]
[1768369540849,3.4466503,144.74,144.66,81.72]
[1768369542356,3.4466503,144.74,144.61,110.16597494]
[1768369542557,3.4466503,144.74,144.62,81.72]
[1768369542756,3.4466503,144.74,144.64,6.2247]
[1768369543351,3.4466503,144.74,144.65,81.72]
[1768369543547,9.6665503,144.76,144.61,110.16597494]
[1768369543854,3.4466503,144.76,144.65,96.8222]
[1768369544055,239.03026315,144.78,144.66,96.8165]
[1768369544250,239.03026315,144.78,144.67,81.72]
[1768369544452,239.03026315,144.78,144.69,6.2225]
[1768369548863,245.24906315,144.78,144.69,6.2225]
[1768369549962,3.4466503,144.76,144.63,13.31837494]
[1768369550162,3.4466503,144.76,144.64,81.68]
[1768369550757,6.2205,144.74,144.66,6.2239]
[1768369550958,3.4466503,144.76,144.66,6.2239]
[1768369552765,3.4466503,144.76,144.67,6.2234]
[1768369553858,3.4466503,144.76,144.68,6.223]
[1768369554856,3.4466503,144.76,144.64,178.5071]
[1768369554857,3.4466503,144.76,144.69,6.2226]
[1768369555053,3.4466503,144.76,144.7,81.68]
[1768369556966,3.4466503,144.76,144.7,87.9022]
[1768369558862,3.4466503,144.76,144.7,81.68]
[1768369559265,3.4466503,144.76,144.64,117.5371]
[1768369559460,3.4466503,144.76,144.65,81.68]
[1768369560366,3.4466503,144.76,144.66,81.68]
[1768369560564,3.4466503,144.76,144.64,117.5371]
[1768369560766,3.4466503,144.76,144.67,6.2234]
[1768369561074,3.4466503,144.76,144.68,81.68]
[1768369561366,3.4466503,144.76,144.69,81.68]
[1768369561761,3.4466503,144.76,144.67,6.2234]
[1768369561968,9.6662503,144.76,144.7,81.68]
[1768369562268,9.6662503,144.76,144.67,6.2234]
[1768369562664,6.2201,144.75,144.68,81.68]
[1768369563264,6.2201,144.75,144.69,81.68]
[1768369563874,3.4466503,144.72,144.6,130.87230954]
[1768369564171,3.4466503,144.72,144.6,34.02120954]
[1768369564363,3.4466503,144.72,144.61,81.68]
[1768369564672,9.6679503,144.72,144.61,81.68]
[1768369565366,6.2219,144.71,144.63,6.2252]
[1768369566573,6.2219,144.71,144.64,6.2248]
[1768369566770,3.4466503,144.72,144.64,6.2248]
[1768369566970,3.83458518,144.74,144.64,6.2248]
[1768369567771,6.2214,144.72,144.64,6.2248]
[1768369569077,3.83458518,144.73,144.64,6.2248]
[1768369570980,3.83458518,144.73,144.65,6.2242]
[1768369571881,3.83458518,144.73,144.66,6.2239]
[1768369572082,3.83458518,144.73,144.67,81.68]
[1768369576187,3.83458518,144.73,144.68,81.68]
[1768369580691,3.60759585,144.72,144.62,6.2252]
[1768369580982,3.60759585,144.72,144.63,81.68]
[1768369581177,6.2218,144.71,144.63,81.68]
[1768369586191,6.2222,144.7,144.63,81.68]
[1768369587894,6.2227,144.69,144.63,81.68]
[1768369592997,6.2227,144.69,144.63,87.9052]
[1768369594888,9.82929585,144.72,144.63,87.9052]
[1768369595296,9.82929585,144.72,144.63,91.11831712]
[1768369595993,3.78987326,144.7,144.61,6.2257]
[1768369596202,3.78987326,144.7,144.62,81.7]
[1768369596389,3.21311712,144.69,144.6,3.21311712]
[1768369596695,3.78987326,144.68,144.63,81.7]
[1768369596902,6.2235,144.67,144.63,81.7]
[1768369597393,10.01337326,144.67,144.63,81.7]
[1768369597795,3.78987326,144.67,144.63,81.7]
[1768369600902,3.78987326,144.68,144.63,81.7]
[1768369601693,10.01297326,144.68,144.63,81.7]
[1768369601894,3.78987326,144.68,144.58,6.227]
[1768369602101,3.78987326,144.68,144.59,84.91311712]
[1768369602601,6.2237,144.67,144.59,84.91311712]
[1768369603700,6.2239,144.66,144.59,84.91311712]
[1768369604096,6.2239,144.66,144.6,3.21311712]
[1768369604401,10.01327326,144.68,144.6,3.21311712]
[1768369604601,3.78987326,144.68,144.61,81.7]
[1768369605802,6.2235,144.67,144.61,81.7]
[1768369609105,6.223,144.69,144.62,3.21311712]
[1768369610503,3.78987326,144.73,144.66,3.21311712]
[1768369610700,3.78987326,144.73,144.67,81.7]
[1768369611096,10.01087326,144.73,144.67,81.7]
[1768369612810,6.2205,144.74,144.67,81.7]
[1768369613909,3.78987326,144.75,144.67,81.7]
[1768369613910,6.221,144.73,144.67,81.7]
[1768369615015,6.2214,144.72,144.67,81.7]
[1768369616621,3.78987326,144.71,144.63,3.21311712]
[1768369616822,3.78987326,144.71,144.64,81.7]
[1768369617916,6.2227,144.69,144.64,81.7]
[1768369618920,3.78987326,144.71,144.63,3.21311712]
[1768369618921,6.2231,144.68,144.63,3.21311712]
[1768369619116,6.2231,144.68,144.64,81.7]
[1768369622621,3.78987326,144.69,144.59,6.2266]
[1768369622820,3.78987326,144.69,144.59,9.43971712]
[1768369623022,3.78987326,144.69,144.6,81.7]
[1768369623819,6.2239,144.66,144.6,81.7]
[1768369624028,3.78987326,144.69,144.61,3.21311712]
[1768369624623,10.01257326,144.69,144.61,3.21311712]
[1768369624827,10.01257326,144.69,144.62,81.7]
[1768369625419,10.01257326,144.69,144.61,3.21311712]
[1768369625714,96.7736,144.73,144.62,81.7]
[1768369625919,3.84381215,144.72,144.63,3.21311712]
[1768369626114,3.84381215,144.74,144.65,3.21311712]
[1768369626322,3.84381215,144.74,144.66,81.7]
[1768369627019,10.06481215,144.73,144.66,81.7]
[1768369628530,13.27792927,144.73,144.66,81.7]
[1768369628933,3.84381215,144.72,144.66,81.7]
[1768369629824,3.84381215,144.71,144.66,81.7]
[1768369630031,3.84381215,144.7,144.67,81.7]
[1768369631535,3.84381215,144.7,144.59,3.21311712]
[1768369631536,3.84381215,144.68,144.59,3.21311712]
[1768369631722,3.84381215,144.68,144.6,81.7]
[1768369633927,10.06691215,144.68,144.6,81.7]
[1768369634637,10.06691215,144.68,144.61,81.7]
[1768369635230,10.06691215,144.68,144.61,84.91311712]
[1768369635436,6.2231,144.68,144.61,84.91311712]
[1768369639439,6.2231,144.68,144.61,91.13911712]
[1768369639741,10.06641215,144.7,144.61,91.13911712]
[1768369640342,3.84381215,144.7,144.61,91.13911712]
[1768369641643,10.06611215,144.7,144.61,91.13911712]
[1768369644345,3.84381215,144.7,144.62,6.2256]
[1768369645041,3.84381215,144.7,144.63,6.2252]
[1768369645235,6.2219,144.71,144.63,6.2252]
[1768369645439,3.77723539,144.72,144.63,3.21311712]
[1768369646042,3.77723539,144.74,144.65,9.43741712]
[1768369646247,3.77723539,144.74,144.66,81.7]
[1768369646545,6.2209,144.73,144.66,81.7]
[1768369648146,3.77723539,144.74,144.66,81.7]
[1768369648547,3.21311712,144.75,144.59,109.3149]
[1768369648548,3.77723539,144.72,144.67,81.7]
[1768369648742,3.21311712,144.75,144.68,81.7]
[1768369648950,3.77723539,144.74,144.68,81.7]
[1768369649849,6.221,144.73,144.68,81.7]
[1768369650448,6.2214,144.72,144.68,81.7]
[1768369652944,6.2218,144.71,144.68,71.1835]
[1768369653139,6.2218,144.71,144.68,34.03787065]
[1768369653344,3.77723539,144.71,144.68,53.3218]
[1768369653545,3.77723539,144.71,144.68,27.3655]
[1768369653746,6.2224,144.7,144.68,4.786e-05]
[1768369654357,9.99903539,144.71,144.68,4.786e-05]
[1768369654654,9.99903539,144.71,144.63,9.43831712]
[1768369654655,9.99903539,144.71,144.65,81.7]
[1768369654855,6.2218,144.71,144.65,81.7]
[1768369658851,3.77723539,144.74,144.65,87.9243]